[Event "January 9 Early 2024"]
[Site "https://www.chess.com"]
[Date "2024.01.11"]
[Round "11"]
[White "Popov, Konstantin"]
[Black "Rustemov, Alexander"]
[Result "1/2-1/2"]
[Board "181"]
[TimeControl "180+1"]
[WhiteFideId "34137910"]
[BlackFideId "4119002"]
[WhiteElo "2912"]
[BlackElo "2826"]
[WhiteTeam "FID"]
[BlackTeam "RUS"]
[WhiteClock "0:00:04"]
[BlackClock "0:00:07"]

1. e4 {[%clk 0:03:00]}  e6 {[%clk 0:02:59]} 2. d4 {[%clk 0:03:00]}  d5 {[%clk 0:03:00]} 3. Nc3 {[%clk 0:03:01]}  dxe4 {[%clk 0:03:00]} 4. Nxe4 {[%clk 0:03:02]}  Bd7 {[%clk 0:03:01]} 5. Nf3 {[%clk 0:03:02]}  Bc6 {[%clk 0:03:01]} 6. Bd3 {[%clk 0:03:03]}  Nd7 {[%clk 0:03:02]} 7. c3 {[%clk 0:03:03]}  Ngf6 {[%clk 0:03:02]} 8. Nxf6+ {[%clk 0:03:03]}  Nxf6 {[%clk 0:03:03]} 9. O-O {[%clk 0:03:03]}  Bxf3 {[%clk 0:03:03]} 10. Qxf3 {[%clk 0:03:03]}  Qd5 {[%clk 0:03:04]} 11. Qe2 {[%clk 0:03:02]}  Qh5 {[%clk 0:03:03]} 12. Qxh5 {[%clk 0:03:00]}  Nxh5 {[%clk 0:03:04]} 13. a4 {[%clk 0:02:58]}  a5 {[%clk 0:03:04]} 14. Re1 {[%clk 0:02:51]}  Nf6 {[%clk 0:03:03]} 15. Bg5 {[%clk 0:02:49]}  c6 {[%clk 0:02:58]} 16. Rad1 {[%clk 0:02:35]}  Be7 {[%clk 0:02:58]} 17. g3 {[%clk 0:02:35]}  Nd5 {[%clk 0:02:49]} 18. Bc1 {[%clk 0:02:35]}  Rd8 {[%clk 0:02:47]} 19. h4 {[%clk 0:02:35]}  h5 {[%clk 0:02:46]} 20. Kg2 {[%clk 0:02:35]}  g6 {[%clk 0:02:45]} 21. Be4 {[%clk 0:02:34]}  Bf6 {[%clk 0:02:40]} 22. Re2 {[%clk 0:02:34]}  Kd7 {[%clk 0:02:33]} 23. Rde1 {[%clk 0:02:34]}  Kc7 {[%clk 0:02:32]} 24. Bc2 {[%clk 0:02:23]}  Rd7 {[%clk 0:02:31]} 25. f3 {[%clk 0:02:21]}  b5 {[%clk 0:02:26]} 26. axb5 {[%clk 0:02:02]}  cxb5 {[%clk 0:02:26]} 27. Bg5 {[%clk 0:02:02]}  Bxg5 {[%clk 0:02:23]} 28. hxg5 {[%clk 0:02:03]}  a4 {[%clk 0:02:22]} 29. Re5 {[%clk 0:01:53]}  Kb6 {[%clk 0:02:14]} 30. Be4 {[%clk 0:01:53]}  Rc8 {[%clk 0:02:13]} 31. Bxd5 {[%clk 0:01:36]}  exd5 {[%clk 0:02:11]} 32. Re7 {[%clk 0:01:31]}  Rcc7 {[%clk 0:02:10]} 33. Rxd7 {[%clk 0:01:32]}  Rxd7 {[%clk 0:02:10]} 34. f4 {[%clk 0:01:28]}  b4 {[%clk 0:02:08]} 35. cxb4 {[%clk 0:00:59]}  Kb5 {[%clk 0:02:08]} 36. Re8 {[%clk 0:00:59]}  Kc4 {[%clk 0:01:41]} 37. Kf3 {[%clk 0:00:49]}  Kb3 {[%clk 0:01:35]} 38. Re2 {[%clk 0:00:47]}  Rb7 {[%clk 0:01:26]} 39. f5 {[%clk 0:00:47]}  Rxb4 {[%clk 0:01:19]} 40. Rd2 {[%clk 0:00:40]}  Ka2 {[%clk 0:01:13]} 41. fxg6 {[%clk 0:00:31]}  fxg6 {[%clk 0:01:13]} 42. Kf4 {[%clk 0:00:31]}  Rxb2 {[%clk 0:01:14]} 43. Rd1 {[%clk 0:00:31]}  a3 {[%clk 0:01:10]} 44. Ke5 {[%clk 0:00:31]}  Kb3 {[%clk 0:01:11]} 45. Kxd5 {[%clk 0:00:29]}  a2 {[%clk 0:01:11]} 46. Ra1 {[%clk 0:00:28]}  Rg2 {[%clk 0:01:02]} 47. Ke6 {[%clk 0:00:27]}  Rxg3 {[%clk 0:00:56]} 48. d5 {[%clk 0:00:28]}  Rxg5 {[%clk 0:00:55]} 49. d6 {[%clk 0:00:27]}  Rg2 {[%clk 0:00:54]} 50. Rd1 {[%clk 0:00:24]}  Re2+ {[%clk 0:00:50]} 51. Kf7 {[%clk 0:00:24]}  Rf2+ {[%clk 0:00:28]} 52. Kg8 {[%clk 0:00:22]}  Kc2 {[%clk 0:00:12]} 53. d7 {[%clk 0:00:19]}  Kxd1 {[%clk 0:00:12]} 54. d8=Q+ {[%clk 0:00:20]}  Rd2 {[%clk 0:00:12]} 55. Qa5 {[%clk 0:00:18]}  h4 {[%clk 0:00:07]} 56. Qa4+ {[%clk 0:00:16]}  Kc1 {[%clk 0:00:08]} 57. Qc4+ {[%clk 0:00:15]}  Kd1 {[%clk 0:00:08]} 58. Qxh4 {[%clk 0:00:15]}  Kc2 {[%clk 0:00:08]} 59. Qc4+ {[%clk 0:00:14]}  Kb2 {[%clk 0:00:07]} 60. Qb4+ {[%clk 0:00:15]}  Kc2 {[%clk 0:00:08]} 61. Qa3 {[%clk 0:00:13]}  Kb1 {[%clk 0:00:06]} 62. Qb3+ {[%clk 0:00:13]}  Kc1 {[%clk 0:00:06]} 63. Qc3+ {[%clk 0:00:11]}  Rc2 {[%clk 0:00:06]} 64. Qa1+ {[%clk 0:00:07]}  Kd2 {[%clk 0:00:06]} 65. Qd4+ {[%clk 0:00:06]}  Kc1 {[%clk 0:00:06]} 66. Qa1+ {[%clk 0:00:06]}  Kd2 {[%clk 0:00:06]} 67. Qd4+ {[%clk 0:00:06]}  Kc1 {[%clk 0:00:07]} 68. Qa1+ {[%clk 0:00:04]} 1/2-1/2

[Event "January 9 Early 2024"]
[Site "https://www.chess.com"]
[Date "2024.01.11"]
[Round "11"]
[White "Nikulina, Alena"]
[Black "Pogorelskikh, Sofia"]
[Result "0-1"]
[Board "183"]
[TimeControl "180+1"]
[WhiteFideId "4172051"]
[BlackFideId "44164548"]
[WhiteElo "2115"]
[BlackElo "2263"]
[WhiteTeam "RUS"]
[BlackTeam "SRB"]
[WhiteClock "0:00:20"]
[BlackClock "0:00:10"]

1. e4 {[%clk 0:02:12]}  c5 {[%clk 0:02:58]} 2. Nf3 {[%clk 0:02:12]}  Nc6 {[%clk 0:02:57]} 3. d4 {[%clk 0:02:12]}  cxd4 {[%clk 0:02:56]} 4. Nxd4 {[%clk 0:02:12]}  Qb6 {[%clk 0:02:55]} 5. Nb3 {[%clk 0:02:01]}  e6 {[%clk 0:02:47]} 6. Be3 {[%clk 0:02:00]}  Qc7 {[%clk 0:02:46]} 7. Nc3 {[%clk 0:02:00]}  a6 {[%clk 0:02:45]} 8. Be2 {[%clk 0:01:58]}  Nf6 {[%clk 0:02:43]} 9. O-O {[%clk 0:01:57]}  Bb4 {[%clk 0:02:38]} 10. Na4 {[%clk 0:01:53]}  Nxe4 {[%clk 0:02:11]} 11. Nb6 {[%clk 0:01:46]}  Rb8 {[%clk 0:02:10]} 12. Bd3 {[%clk 0:01:31]}  d5 {[%clk 0:02:00]} 13. Qg4 {[%clk 0:01:29]}  f5 {[%clk 0:01:52]} 14. Qh5+ {[%clk 0:01:24]}  g6 {[%clk 0:01:51]} 15. Qh6 {[%clk 0:01:16]}  Bf8 {[%clk 0:01:38]} 16. Qh4 {[%clk 0:01:14]}  Be7 {[%clk 0:01:20]} 17. Qh6 {[%clk 0:01:09]}  Bf6 {[%clk 0:01:19]} 18. c3 {[%clk 0:00:46]}  Ne7 {[%clk 0:00:39]} 19. a4 {[%clk 0:00:23]}  e5 {[%clk 0:00:39]} 20. Bxe4 {[%clk 0:00:14]}  fxe4 {[%clk 0:00:34]} 21. a5 {[%clk 0:00:13]}  Be6 {[%clk 0:00:17]} 22. Nc5 {[%clk 0:00:08]}  Bf7 {[%clk 0:00:15]} 23. Qh3 {[%clk 0:00:05]}  Bg7 {[%clk 0:00:08]} 24. Ne6 {[%clk 0:00:06]}  Bxe6 {[%clk 0:00:07]} 25. Qxe6 {[%clk 0:00:07]}  Qc6 {[%clk 0:00:07]} 26. Qxc6+ {[%clk 0:00:06]}  bxc6 {[%clk 0:00:07]} 27. Bc5 {[%clk 0:00:07]}  Nc8 {[%clk 0:00:05]} 28. b4 {[%clk 0:00:07]}  Kf7 {[%clk 0:00:04]} 29. Nxc8 {[%clk 0:00:07]}  Rbxc8 {[%clk 0:00:03]} 30. Bd6 {[%clk 0:00:07]}  Rhd8 {[%clk 0:00:03]} 31. Bc5 {[%clk 0:00:08]}  Rd7 {[%clk 0:00:03]} 32. Bb6 {[%clk 0:00:09]}  Ke6 {[%clk 0:00:03]} 33. Rfd1 {[%clk 0:00:10]}  d4 {[%clk 0:00:04]} 34. cxd4 {[%clk 0:00:10]}  exd4 {[%clk 0:00:04]} 35. Kf1 {[%clk 0:00:11]}  d3 {[%clk 0:00:05]} 36. f3 {[%clk 0:00:11]}  Bxa1 {[%clk 0:00:04]} 37. Rxa1 {[%clk 0:00:11]}  exf3 {[%clk 0:00:04]} 38. gxf3 {[%clk 0:00:11]}  d2 {[%clk 0:00:04]} 39. Rd1 {[%clk 0:00:12]}  Re8 {[%clk 0:00:04]} 40. Kf2 {[%clk 0:00:11]}  Kf5 {[%clk 0:00:04]} 41. Be3 {[%clk 0:00:11]}  Rd3 {[%clk 0:00:03]} 42. Bc5 {[%clk 0:00:09]}  Red8 {[%clk 0:00:02]} 43. h3 {[%clk 0:00:09]}  R8d5 {[%clk 0:00:02]} 44. Be3 {[%clk 0:00:09]}  Rb3 {[%clk 0:00:02]} 45. Bc5 {[%clk 0:00:09]}  Rdd3 {[%clk 0:00:02]} 46. Ke2 {[%clk 0:00:09]}  Rxf3 {[%clk 0:00:02]} 47. Rxd2 {[%clk 0:00:10]}  Rxh3 {[%clk 0:00:02]} 48. Rd8 {[%clk 0:00:09]}  Rh2+ {[%clk 0:00:02]} 49. Bf2 {[%clk 0:00:08]}  Rb2+ {[%clk 0:00:02]} 50. Ke3 {[%clk 0:00:08]}  Rbxf2 {[%clk 0:00:03]} 51. Rf8+ {[%clk 0:00:08]}  Kg4 {[%clk 0:00:03]} 52. Rxf2 {[%clk 0:00:08]}  Rxf2 {[%clk 0:00:03]} 53. Kxf2 {[%clk 0:00:09]}  h5 {[%clk 0:00:04]} 54. Kg2 {[%clk 0:00:09]}  h4 {[%clk 0:00:05]} 55. Kh2 {[%clk 0:00:09]}  h3 {[%clk 0:00:05]} 56. b5 {[%clk 0:00:10]}  cxb5 {[%clk 0:00:05]} 57. Kh1 {[%clk 0:00:10]}  Kg3 {[%clk 0:00:05]} 58. Kg1 {[%clk 0:00:11]}  g5 {[%clk 0:00:05]} 59. Kh1 {[%clk 0:00:12]}  g4 {[%clk 0:00:06]} 60. Kg1 {[%clk 0:00:12]}  Kh4 {[%clk 0:00:06]} 61. Kh1 {[%clk 0:00:13]}  g3 {[%clk 0:00:07]} 62. Kg1 {[%clk 0:00:13]}  g2 {[%clk 0:00:07]} 63. Kh2 {[%clk 0:00:14]}  Kg4 {[%clk 0:00:07]} 64. Kg1 {[%clk 0:00:15]}  b4 {[%clk 0:00:08]} 65. Kh2 {[%clk 0:00:16]}  b3 {[%clk 0:00:08]} 66. Kg1 {[%clk 0:00:17]}  b2 {[%clk 0:00:09]} 67. Kh2 {[%clk 0:00:18]}  g1=Q+ {[%clk 0:00:09]} 68. Kxg1 {[%clk 0:00:19]}  b1=Q+ {[%clk 0:00:09]} 69. Kh2 {[%clk 0:00:19]}  Qc2+ {[%clk 0:00:10]} 70. Kg1 {[%clk 0:00:20]}  Qg2# {[%clk 0:00:10]} 0-1

[Event "January 9 Early 2024"]
[Site "https://www.chess.com"]
[Date "2024.01.11"]
[Round "11"]
[White "Aradhya, Garg"]
[Black "Radzhabov, Rodion"]
[Result "1/2-1/2"]
[Board "185"]
[TimeControl "180+1"]
[WhiteFideId "25006746"]
[BlackFideId "884715"]
[WhiteElo "2724"]
[BlackElo "2609"]
[WhiteTeam "IND"]
[BlackTeam "RUS"]
[WhiteClock "0:00:34"]
[BlackClock "0:00:13"]

1. d4 {[%clk 0:02:55]}  Nf6 {[%clk 0:02:57]} 2. c4 {[%clk 0:02:55]}  e6 {[%clk 0:02:57]} 3. Nf3 {[%clk 0:02:55]}  d5 {[%clk 0:02:56]} 4. Nc3 {[%clk 0:02:54]}  Be7 {[%clk 0:02:54]} 5. cxd5 {[%clk 0:02:55]}  exd5 {[%clk 0:02:54]} 6. Bf4 {[%clk 0:02:55]}  c6 {[%clk 0:02:51]} 7. h3 {[%clk 0:02:55]}  Be6 {[%clk 0:02:51]} 8. e3 {[%clk 0:02:55]}  Nbd7 {[%clk 0:02:52]} 9. Bd3 {[%clk 0:02:55]}  O-O {[%clk 0:02:51]} 10. O-O {[%clk 0:02:56]}  h6 {[%clk 0:02:51]} 11. Qc2 {[%clk 0:02:51]}  Rc8 {[%clk 0:02:50]} 12. Rad1 {[%clk 0:02:51]}  c5 {[%clk 0:02:51]} 13. dxc5 {[%clk 0:02:50]}  Nxc5 {[%clk 0:02:52]} 14. Nd4 {[%clk 0:02:50]}  Nxd3 {[%clk 0:02:50]} 15. Qxd3 {[%clk 0:02:50]}  a6 {[%clk 0:02:25]} 16. Rd2 {[%clk 0:02:48]}  Bb4 {[%clk 0:02:18]} 17. Rc2 {[%clk 0:02:47]}  Bxc3 {[%clk 0:02:15]} 18. Rxc3 {[%clk 0:02:46]}  Qb6 {[%clk 0:02:10]} 19. Rb3 {[%clk 0:02:18]}  Qa7 {[%clk 0:01:58]} 20. Nxe6 {[%clk 0:02:10]}  fxe6 {[%clk 0:01:57]} 21. Bxh6 {[%clk 0:02:07]}  gxh6 {[%clk 0:01:44]} 22. Qg6+ {[%clk 0:02:08]}  Kh8 {[%clk 0:01:45]} 23. Qxh6+ {[%clk 0:02:09]}  Kg8 {[%clk 0:01:45]} 24. Qg6+ {[%clk 0:02:09]}  Kh8 {[%clk 0:01:44]} 25. Rb4 {[%clk 0:02:04]}  Rc4 {[%clk 0:01:35]} 26. Rxc4 {[%clk 0:02:02]}  dxc4 {[%clk 0:01:34]} 27. Rd1 {[%clk 0:01:57]}  b5 {[%clk 0:01:16]} 28. Rd6 {[%clk 0:01:57]}  Qg7 {[%clk 0:01:15]} 29. Qxg7+ {[%clk 0:01:55]}  Kxg7 {[%clk 0:01:15]} 30. Rxa6 {[%clk 0:01:56]}  Rd8 {[%clk 0:01:07]} 31. Rb6 {[%clk 0:01:51]}  Rd1+ {[%clk 0:00:57]} 32. Kh2 {[%clk 0:01:51]}  Rd5 {[%clk 0:00:58]} 33. f3 {[%clk 0:01:48]}  Nd7 {[%clk 0:00:55]} 34. Rb7 {[%clk 0:01:02]}  Kf6 {[%clk 0:00:53]} 35. e4 {[%clk 0:01:02]}  Rd2 {[%clk 0:00:40]} 36. Rxb5 {[%clk 0:01:01]}  Ne5 {[%clk 0:00:41]} 37. f4 {[%clk 0:00:53]}  Nd3 {[%clk 0:00:40]} 38. Rb6 {[%clk 0:00:36]}  Rxb2 {[%clk 0:00:37]} 39. Rc6 {[%clk 0:00:36]}  Nxf4 {[%clk 0:00:34]} 40. Rxc4 {[%clk 0:00:36]}  Rxg2+ {[%clk 0:00:34]} 41. Kh1 {[%clk 0:00:37]}  Rxa2 {[%clk 0:00:35]} 42. Rc5 {[%clk 0:00:37]}  Nxh3 {[%clk 0:00:31]} 43. Rh5 {[%clk 0:00:36]}  Nf4 {[%clk 0:00:30]} 44. Rb5 {[%clk 0:00:35]}  Nh3 {[%clk 0:00:28]} 45. Rh5 {[%clk 0:00:33]}  Nf2+ {[%clk 0:00:29]} 46. Kg2 {[%clk 0:00:34]}  Nxe4+ {[%clk 0:00:30]} 47. Kf3 {[%clk 0:00:34]}  Ng5+ {[%clk 0:00:29]} 48. Ke3 {[%clk 0:00:35]}  Ra3+ {[%clk 0:00:28]} 49. Kf4 {[%clk 0:00:35]}  Ra4+ {[%clk 0:00:28]} 50. Ke3 {[%clk 0:00:35]}  Kf5 {[%clk 0:00:28]} 51. Rh8 {[%clk 0:00:34]}  Ra3+ {[%clk 0:00:28]} 52. Ke2 {[%clk 0:00:35]}  Ke4 {[%clk 0:00:27]} 53. Rh4+ {[%clk 0:00:34]}  Ke5 {[%clk 0:00:26]} 54. Rh5 {[%clk 0:00:34]}  Kf4 {[%clk 0:00:23]} 55. Rh4+ {[%clk 0:00:34]}  Ke5 {[%clk 0:00:21]} 56. Rh5 {[%clk 0:00:35]}  Kf5 {[%clk 0:00:21]} 57. Rh8 {[%clk 0:00:34]}  e5 {[%clk 0:00:19]} 58. Rf8+ {[%clk 0:00:34]}  Ke4 {[%clk 0:00:20]} 59. Rb8 {[%clk 0:00:34]}  Ra2+ {[%clk 0:00:20]} 60. Kd1 {[%clk 0:00:34]}  Nf3 {[%clk 0:00:16]} 61. Rh8 {[%clk 0:00:34]}  Nh4 {[%clk 0:00:15]} 62. Rxh4+ {[%clk 0:00:33]}  Kd3 {[%clk 0:00:16]} 63. Rh3+ {[%clk 0:00:33]}  Kd4 {[%clk 0:00:16]} 64. Rh4+ {[%clk 0:00:33]}  e4 {[%clk 0:00:14]} 65. Rh3 {[%clk 0:00:34]}  e3 {[%clk 0:00:14]} 66. Rh8 {[%clk 0:00:33]}  Ra1+ {[%clk 0:00:13]} 67. Ke2 {[%clk 0:00:33]}  Ra2+ {[%clk 0:00:14]} 68. Ke1 {[%clk 0:00:34]}  Rf2 {[%clk 0:00:14]} 69. Rd8+ {[%clk 0:00:33]}  Ke4 {[%clk 0:00:15]} 70. Re8+ {[%clk 0:00:33]}  Kf3 {[%clk 0:00:14]} 71. Rf8+ {[%clk 0:00:33]}  Ke4 {[%clk 0:00:15]} 72. Re8+ {[%clk 0:00:33]}  Kd3 {[%clk 0:00:13]} 73. Rd8+ {[%clk 0:00:34]}  Ke4 {[%clk 0:00:13]} 74. Re8+ {[%clk 0:00:34]} 1/2-1/2

[Event "January 9 Early 2024"]
[Site "https://www.chess.com"]
[Date "2024.01.11"]
[Round "11"]
[White "Perossa, Nicolas"]
[Black "Cieslak, Patryk"]
[Result "0-1"]
[Board "186"]
[TimeControl "180+1"]
[WhiteFideId "2850520"]
[BlackFideId "21078882"]
[WhiteElo "2476"]
[BlackElo "2701"]
[WhiteTeam "ITA"]
[BlackTeam "POL"]
[WhiteClock "0:00:14"]
[BlackClock "0:00:10"]

1. e4 {[%clk 0:03:00]}  c6 {[%clk 0:03:00]} 2. d4 {[%clk 0:03:00]}  g6 {[%clk 0:03:01]} 3. Nc3 {[%clk 0:03:00]}  d5 {[%clk 0:03:01]} 4. Be3 {[%clk 0:02:56]}  dxe4 {[%clk 0:03:01]} 5. Nxe4 {[%clk 0:02:55]}  Bg7 {[%clk 0:03:02]} 6. Nf3 {[%clk 0:02:54]}  Nf6 {[%clk 0:03:02]} 7. Bd3 {[%clk 0:02:53]}  O-O {[%clk 0:03:02]} 8. c3 {[%clk 0:02:50]}  Nxe4 {[%clk 0:03:01]} 9. Bxe4 {[%clk 0:02:51]}  Nd7 {[%clk 0:03:02]} 10. Bd3 {[%clk 0:02:42]}  Nf6 {[%clk 0:03:03]} 11. h3 {[%clk 0:02:35]}  Nd5 {[%clk 0:03:01]} 12. Qd2 {[%clk 0:02:29]}  Nxe3 {[%clk 0:02:59]} 13. Qxe3 {[%clk 0:02:30]}  Be6 {[%clk 0:02:56]} 14. Ng5 {[%clk 0:02:16]}  Bd5 {[%clk 0:02:56]} 15. O-O {[%clk 0:02:06]}  Re8 {[%clk 0:02:44]} 16. c4 {[%clk 0:02:00]}  Be6 {[%clk 0:01:35]} 17. Nxe6 {[%clk 0:02:00]}  fxe6 {[%clk 0:01:36]} 18. Qxe6+ {[%clk 0:02:00]}  Kh8 {[%clk 0:01:34]} 19. d5 {[%clk 0:01:20]}  cxd5 {[%clk 0:01:31]} 20. cxd5 {[%clk 0:01:20]}  Qd6 {[%clk 0:01:25]} 21. Rad1 {[%clk 0:00:44]}  Qxe6 {[%clk 0:01:19]} 22. dxe6 {[%clk 0:00:44]}  Red8 {[%clk 0:01:20]} 23. Be4 {[%clk 0:00:39]}  Rab8 {[%clk 0:01:18]} 24. Rd7 {[%clk 0:00:33]}  Re8 {[%clk 0:00:49]} 25. b3 {[%clk 0:00:29]}  b5 {[%clk 0:00:48]} 26. Rc1 {[%clk 0:00:26]}  Be5 {[%clk 0:00:41]} 27. Rxa7 {[%clk 0:00:13]}  b4 {[%clk 0:00:38]} 28. Rd7 {[%clk 0:00:09]}  Bd6 {[%clk 0:00:36]} 29. g3 {[%clk 0:00:09]}  Rf8 {[%clk 0:00:33]} 30. Kg2 {[%clk 0:00:08]}  Kg7 {[%clk 0:00:29]} 31. Bd5 {[%clk 0:00:05]}  Rf5 {[%clk 0:00:27]} 32. Be4 {[%clk 0:00:03]}  Re5 {[%clk 0:00:25]} 33. Bf3 {[%clk 0:00:04]}  Rxe6 {[%clk 0:00:24]} 34. Rc6 {[%clk 0:00:03]}  Rf6 {[%clk 0:00:22]} 35. Ra6 {[%clk 0:00:02]}  Rbf8 {[%clk 0:00:20]} 36. Raxd6 {[%clk 0:00:01]}  Rxd6 {[%clk 0:00:18]} 37. Rxe7+ {[%clk 0:00:02]}  Rf7 {[%clk 0:00:17]} 38. Re4 {[%clk 0:00:03]}  Rdf6 {[%clk 0:00:15]} 39. Re3 {[%clk 0:00:03]}  Ra7 {[%clk 0:00:15]} 40. Re4 {[%clk 0:00:02]}  Rb6 {[%clk 0:00:13]} 41. Rd4 {[%clk 0:00:01]}  Rxa2 {[%clk 0:00:13]} 42. Bd5 {[%clk 0:00:01]}  Rd6 {[%clk 0:00:11]} 43. Kf3 {[%clk 0:00:01]}  Ra5 {[%clk 0:00:11]} 44. Ke4 {[%clk 0:00:01]}  Kf6 {[%clk 0:00:11]} 45. f4 {[%clk 0:00:02]}  h6 {[%clk 0:00:10]} 46. g4 {[%clk 0:00:02]}  Ra7 {[%clk 0:00:09]} 47. f5 {[%clk 0:00:03]}  Re7+ {[%clk 0:00:09]} 48. Be6 {[%clk 0:00:03]}  Rxd4+ {[%clk 0:00:06]} 49. Kxd4 {[%clk 0:00:04]}  Rc7 {[%clk 0:00:07]} 50. Bd5 {[%clk 0:00:03]}  g5 {[%clk 0:00:05]} 51. Be6 {[%clk 0:00:03]}  Rc3 {[%clk 0:00:05]} 52. Bc4 {[%clk 0:00:01]}  Rxh3 {[%clk 0:00:05]} 53. Kc5 {[%clk 0:00:02]}  h5 {[%clk 0:00:04]} 54. gxh5 {[%clk 0:00:02]}  Rxh5 {[%clk 0:00:05]} 55. Kxb4 {[%clk 0:00:03]}  g4 {[%clk 0:00:05]} 56. Be2 {[%clk 0:00:02]}  g3 {[%clk 0:00:02]} 57. Bf3 {[%clk 0:00:02]}  Rxf5 {[%clk 0:00:03]} 58. Bg2 {[%clk 0:00:03]}  Rf2 {[%clk 0:00:03]} 59. Ba8 {[%clk 0:00:02]}  g2 {[%clk 0:00:04]} 60. Bxg2 {[%clk 0:00:02]}  Rxg2 {[%clk 0:00:05]} 61. Kc5 {[%clk 0:00:03]}  Ke7 {[%clk 0:00:06]} 62. b4 {[%clk 0:00:03]}  Kd7 {[%clk 0:00:06]} 63. Kb6 {[%clk 0:00:04]}  Kc8 {[%clk 0:00:07]} 64. b5 {[%clk 0:00:05]}  Kb8 {[%clk 0:00:08]} 65. Kc6 {[%clk 0:00:06]}  Rg7 {[%clk 0:00:09]} 66. Kb6 {[%clk 0:00:06]}  Rb7+ {[%clk 0:00:09]} 67. Ka6 {[%clk 0:00:07]}  Kc7 {[%clk 0:00:09]} 68. Ka5 {[%clk 0:00:07]}  Rb6 {[%clk 0:00:09]} 69. Kb4 {[%clk 0:00:08]}  Kd6 {[%clk 0:00:10]} 70. Kc4 {[%clk 0:00:08]}  Rb8 {[%clk 0:00:10]} 71. Kb4 {[%clk 0:00:08]}  Kd5 {[%clk 0:00:11]} 72. Ka5 {[%clk 0:00:09]}  Kc5 {[%clk 0:00:11]} 73. Ka6 {[%clk 0:00:10]}  Rb6+ {[%clk 0:00:11]} 74. Ka7 {[%clk 0:00:10]}  Kxb5 {[%clk 0:00:10]} 75. Ka8 {[%clk 0:00:10]}  Rc6 {[%clk 0:00:09]} 76. Ka7 {[%clk 0:00:11]}  Rc7+ {[%clk 0:00:09]} 77. Ka8 {[%clk 0:00:12]}  Ka6 {[%clk 0:00:09]} 78. Kb8 {[%clk 0:00:13]}  Kb6 {[%clk 0:00:10]} 79. Ka8 {[%clk 0:00:14]}  Rc8# {[%clk 0:00:10]} 0-1

[Event "January 9 Early 2024"]
[Site "https://www.chess.com"]
[Date "2024.01.11"]
[Round "11"]
[White "Makaraci, Tunahan"]
[Black "Samunenkov, Ihor"]
[Result "0-1"]
[Board "187"]
[TimeControl "180+1"]
[WhiteFideId "6356559"]
[BlackFideId "14187086"]
[WhiteElo "2554"]
[BlackElo "2766"]
[WhiteTeam "TUR"]
[BlackTeam "UKR"]
[WhiteClock "0:00:04"]
[BlackClock "0:00:06"]

1. e4 {[%clk 0:03:00]}  c5 {[%clk 0:02:59]} 2. c3 {[%clk 0:03:00]}  d5 {[%clk 0:02:55]} 3. exd5 {[%clk 0:03:00]}  Qxd5 {[%clk 0:02:56]} 4. d4 {[%clk 0:03:01]}  Nf6 {[%clk 0:02:56]} 5. Nf3 {[%clk 0:03:01]}  e6 {[%clk 0:02:57]} 6. a3 {[%clk 0:03:00]}  Nc6 {[%clk 0:02:50]} 7. Be3 {[%clk 0:03:00]}  cxd4 {[%clk 0:02:40]} 8. cxd4 {[%clk 0:03:00]}  Be7 {[%clk 0:02:40]} 9. Nc3 {[%clk 0:03:00]}  Qd6 {[%clk 0:02:40]} 10. Bd3 {[%clk 0:03:00]}  O-O {[%clk 0:02:40]} 11. O-O {[%clk 0:03:01]}  b6 {[%clk 0:02:38]} 12. Qe2 {[%clk 0:03:01]}  Bb7 {[%clk 0:02:37]} 13. Rad1 {[%clk 0:03:01]}  Rad8 {[%clk 0:02:34]} 14. Rfe1 {[%clk 0:03:02]}  Nd5 {[%clk 0:02:24]} 15. Nxd5 {[%clk 0:02:53]}  Qxd5 {[%clk 0:02:24]} 16. Bc4 {[%clk 0:02:53]}  Qh5 {[%clk 0:02:22]} 17. Ne5 {[%clk 0:02:15]}  Qxe2 {[%clk 0:02:18]} 18. Bxe2 {[%clk 0:02:14]}  Na5 {[%clk 0:02:12]} 19. b4 {[%clk 0:02:06]}  Nc6 {[%clk 0:02:09]} 20. Bf3 {[%clk 0:01:43]}  Nxe5 {[%clk 0:01:54]} 21. Bxb7 {[%clk 0:01:40]}  Nc4 {[%clk 0:01:54]} 22. Rd3 {[%clk 0:01:29]}  a5 {[%clk 0:01:38]} 23. Ba6 {[%clk 0:01:27]}  Nxe3 {[%clk 0:01:36]} 24. fxe3 {[%clk 0:01:24]}  axb4 {[%clk 0:01:36]} 25. axb4 {[%clk 0:01:24]}  Bxb4 {[%clk 0:01:37]} 26. Rb1 {[%clk 0:01:25]}  Ba5 {[%clk 0:01:36]} 27. Rc1 {[%clk 0:01:21]}  g6 {[%clk 0:01:32]} 28. Kf2 {[%clk 0:01:20]}  Kg7 {[%clk 0:01:29]} 29. Rc7 {[%clk 0:01:16]}  Ra8 {[%clk 0:01:21]} 30. Bb5 {[%clk 0:01:14]}  Rfc8 {[%clk 0:01:22]} 31. Rxc8 {[%clk 0:01:02]}  Rxc8 {[%clk 0:01:23]} 32. Kf3 {[%clk 0:00:59]}  Rc2 {[%clk 0:01:16]} 33. d5 {[%clk 0:00:58]}  exd5 {[%clk 0:01:16]} 34. Rxd5 {[%clk 0:00:58]}  Be1 {[%clk 0:01:12]} 35. Be2 {[%clk 0:00:55]}  Bb4 {[%clk 0:01:11]} 36. Rd7 {[%clk 0:00:48]}  Bc5 {[%clk 0:01:03]} 37. Ba6 {[%clk 0:00:39]}  Rc3 {[%clk 0:00:55]} 38. Rd3 {[%clk 0:00:39]}  Rc1 {[%clk 0:00:55]} 39. Rd7 {[%clk 0:00:39]}  Kf6 {[%clk 0:00:55]} 40. Bb7 {[%clk 0:00:34]}  Rc3 {[%clk 0:00:51]} 41. Bd5 {[%clk 0:00:25]}  Rxe3+ {[%clk 0:00:50]} 42. Kf4 {[%clk 0:00:22]}  Re7 {[%clk 0:00:44]} 43. Rxe7 {[%clk 0:00:22]}  Bxe7 {[%clk 0:00:45]} 44. Ke4 {[%clk 0:00:20]}  h5 {[%clk 0:00:40]} 45. h3 {[%clk 0:00:20]}  h4 {[%clk 0:00:40]} 46. Bc4 {[%clk 0:00:19]}  Bd6 {[%clk 0:00:40]} 47. Bd5 {[%clk 0:00:19]}  Ke7 {[%clk 0:00:40]} 48. Bc4 {[%clk 0:00:17]}  f5+ {[%clk 0:00:40]} 49. Kf3 {[%clk 0:00:17]}  Kf6 {[%clk 0:00:40]} 50. Bb3 {[%clk 0:00:17]}  b5 {[%clk 0:00:39]} 51. Ba2 {[%clk 0:00:15]}  b4 {[%clk 0:00:39]} 52. Bc4 {[%clk 0:00:16]}  g5 {[%clk 0:00:15]} 53. Bb3 {[%clk 0:00:15]}  Bf4 {[%clk 0:00:15]} 54. Ke2 {[%clk 0:00:14]}  Ke5 {[%clk 0:00:14]} 55. Kd3 {[%clk 0:00:14]}  g4 {[%clk 0:00:12]} 56. Bd1 {[%clk 0:00:13]}  gxh3 {[%clk 0:00:11]} 57. gxh3 {[%clk 0:00:14]}  Bg3 {[%clk 0:00:09]} 58. Bf3 {[%clk 0:00:13]}  Be1 {[%clk 0:00:07]} 59. Ke2 {[%clk 0:00:12]}  Bc3 {[%clk 0:00:06]} 60. Kd3 {[%clk 0:00:13]}  Kf4 {[%clk 0:00:07]} 61. Bg2 {[%clk 0:00:13]}  Kg3 {[%clk 0:00:08]} 62. Bf1 {[%clk 0:00:12]}  f4 {[%clk 0:00:07]} 63. Ke4 {[%clk 0:00:05]}  b3 {[%clk 0:00:05]} 64. Kd3 {[%clk 0:00:04]}  b2 {[%clk 0:00:06]} 65. Kc2 {[%clk 0:00:04]}  f3 {[%clk 0:00:06]} 0-1